{"text_format":"1","workbook":"xlsx","n_sheets":10,"sheets":["Instructions (LHUK)","Parts 1 and 2","Part 3 REACh","Part 3 SVHCs","Part 4 RoHS","Part 5 Radioactive Sources","Attribute Lookup","Export Lookup","Parameter Lookup","Import Options"],"not_rendered":{"charts":0,"images":1,"macros":1,"external_links":0,"defined_names":56,"comments":2,"pivot_tables":0},"unopened":[],"bounds":{"document_bytes":16777216,"sheet_cells":100000,"rows_first":2000,"rows_last":500,"rows_between":2000,"halvings":0,"cell_chars":16384,"cell_head_chars":4096},"cells_cut":0,"cells_raw":0,"read":"whole","date_system":"1900"}

{"sheet":"Instructions (LHUK)","index":0,"n_rows":87,"n_cols":11,"rows_kept":87,"cut":false,"hidden":false,"merged":[[9,1,10,5],[12,1,13,5],[15,1,16,5]]}
["Restricted Substance and Radioactive Source Declaration In Articles supplied to LHUK"]
[]
["This template requires you to \"declare\", or provide information about, the presence of certain substances and radioactive sources in articles "]
["(parts/products etc) supplied to LHUK."]
[]
["The articles (part numbers or product identifications etc) and the substances/sources should be listed in the declaration Parts 3, 4 and 5."]
[]
["Please complete the template, even if there are no substances in any articles supplied and return it electronically as an excel file within 60 days to the following person:"]
[]
["Name:","LHUK Procurement"]
[]
[]
["Email:","reach.mbx@agustawestland.com"]
[]
[]
["Telephone","+44(0) 1935 703773"]
[]
[]
[]
["Any questions regarding the completion of the declaration should be addresssed to the above person."]
[]
["The process for completion is:"]
[]
[]
[null,null,null,"Indicates that the field will be pre-completed by LH UK.",null,null,null,null,null,null,"Indicates that the field must be completed by the supplier."]
[]
[]
[]
[]
[]
[]
[]
[]
[]
[]
[]
[]
[]
[]
[]
[]
[]
[]
[]
[]
[]
[]
[]
[]
[]
[]
[]
[]
[]
[]
[]
[]
[]
[]
[]
[]
[]
[]
[]
[]
[]
[]
[]
[]
[]
[]
[]
[]
[]
[]
[]
[]
[]
[]
[]
[]
[null,null,null,null,null,null,null,null,null,null,"Further information:"]
[null,null,null,null,null,null,null,null,null,null,"http://echa.europe.eu/"]
[]
[null,null,null,null,null,null,null,null,null,null,"http://rohs.eu/"]
[]
[null,null,null,null,null,null,null,null,null,null,"www.euratom.org"]

{"sheet":"Parts 1 and 2","index":1,"n_rows":26,"n_cols":3,"rows_kept":26,"cut":false,"hidden":false,"merged":[[5,0,5,7],[1,0,1,1],[2,0,2,7],[3,0,3,7],[4,0,4,1],[4,2,4,7],[1,2,1,7],[6,0,6,1],[6,2,6,7],[7,0,7,1],[7,2,7,7],[8,0,8,1],[8,2,8,7],[9,0,9,1],[9,2,9,7],[10,0,10,1],[10,2,10,7],[11,0,11,1],[11,2,11,7],[12,0,12,1],[12,2,12,7],[13,0,13,7],[14,0,14,7],[15,0,15,1],[15,2,15,7],[23,0,23,7],[16,0,16,1],[16,2,16,7],[17,0,17,1],[17,2,17,7],[18,0,18,1],[18,2,18,7],[19,0,19,1],[19,2,19,7],[20,0,20,7],[21,0,21,7],[22,0,22,7]]}
[]
[]
["WA4299-6 Hazardous Substances Identification"]
["MATERIAL DECLARATION FORM"]
["LHUK Buyer e-mail"]
["PART 1: Supplier Details"]
["Company Name"]
["Supplier Address"]
["Supplier Identification Code"]
["Supplier's Contact: name, e-mail and telephone"]
["Supplier HSE: name, e-mail and telephone"]
["Environmental Management System "]
["Environmental certification "]
["PART 2: Supplier Declaration"]
["The Supplier shall declare whether any articles concerned by the legisation listed below are delivered to LHUK. Should the Supplier state \"Applicable\" for any regulation below, the Supplier shall complete the appropriate part of the Material Declaration Form for each article concerned by that legislation."]
["REACH ECHA SVHC Candidate List\n(PART 3)",null,"\n\n\n        Supplier REACH Responsible:"]
["RoHS Leadfree soldering (Electronic Articles only)\n(PART 4)",null,"\n\n\n        Supplier RoHS Responsible:"]
["RoHS Restricted Substances (Electronic Articles only)\n(PART 4)",null,"Supplier: RoHS Responsible"]
["Radioactive Source\n(Part 5)",null,"\n\n\n        Supplier Radio-emissive Responsible: "]
[null,null,"I guarantee the accuracy and the reliability of the information provided herein at the time of signature of such MDF,\nand I guarantee that the information sent in MDF by post mail is identical to the one that may be provided electronically"]
["Date:  "]
["Supplier Signature: "]
["Name: "]
["Title: "]
[]
[null,"COTS","Commercial off the Shelf (Products)"]

{"sheet":"Part 3 REACh","index":2,"n_rows":40,"n_cols":12,"rows_kept":40,"cut":false,"hidden":false,"merged":[[0,1,0,6],[16,11,20,11],[1,1,1,6],[10,5,10,6],[8,1,8,3],[2,1,2,6],[7,1,7,3],[9,1,9,3],[7,4,7,6],[8,5,8,6],[15,2,15,6],[11,5,11,6],[12,5,12,6],[11,2,11,3],[12,2,12,3],[13,2,13,3],[14,5,14,6],[5,1,5,2],[13,5,13,6],[10,2,10,3],[3,1,3,6],[4,1,4,6],[5,3,5,6],[9,5,9,6]]}
[]
[null,"Part 3: Article Declaration Form - Complete One Sheet per Article/Part Number"]
[null,"All substances with a partial weight of > 0.1% of the item and substances intended for release have to be declared in the list below.\n\nThe content of the drop down boxes is derieved from the 'SVHC' worksheet. The list will be generated from the ECHA Candidate List. \n\nChoosing the content of one drop down box will automatically synchronise the other drop down boxes. Text box 4 must be filled in for each substance. Text box 6 may be filled in if this information is available). Add the chemical by clicking the Add Chemical button. When you have finished, click on the Validate Declaration Form button to check for errors."]
[null,"       I guarantee that all Article(s) containing any substance as identified hereabove, according to available information, is clearly identified"]
[null,"       I guarantee the absence of substances intended to be released by the Article, as per REACh, according to available information"]
[null,"There is a Substitution Plan"]
[null,null,null,null,null,null,null,"lb",1,"Incorporated"]
[null,"Article Name",null,null,"Supplier Information",null,null,"kg",2,"Used in production"]
[null,null,null,null,"Supplier Name",null,null,null,3,"Used in the coating"]
[null,"Requester Information",null,null,"Supplier Part #",null,null,null,4]
[null,"Company Name","LHUK",null,"Supplier Part Desc"]
[null,"AW SAP #",null,null,"Prepared by"]
[null,"AW Part Desc",null,null,"Date of declaration"]
[null,"Declaration #","WA4299-6",null,"Weight of Item, as delivered."]
[null,null,null,null,"Unit (lbs / kg)","kg"]
[]
["Row#","1. CAS Number","2. EC (EINECS or ELINCS) Number ","3. Substance Name","4. Weight Percent","5. Registration Number\n (if available)\nTo be filled in by supplier","6. Category",null,null,null,null,"Double click to delete row"]
[null,{"$f":"INDEX('Part 3 SVHCs'!B2:B305,'Part 3 REACh'!$A$19,1)","v":"2580-56-5"},{"$f":"INDEX('Part 3 SVHCs'!C2:C305,'Part 3 REACh'!$A$19,1)","v":"219-943-6"},{"$f":"INDEX('Part 3 SVHCs'!D2:D305,'Part 3 REACh'!A19,1)","v":"[4-[[4-anilino-1-naphthyl][4-(dimethylamino)phenyl]methylene]cyclohexa-2,5-dien-1-ylidene] dimethylammonium chloride (C.I. Basic Blue 26) [with ≥ 0.1% of Michler's ketone (EC No. 202-027-5) or Michler's base (EC No. 202-959-2)]\n"},0,null,"Incorporated"]
[1]
[null,null,null,null,"Total"]
[0,null,null,null,{"$f":"SUM(E22:E39)","v":0}]
[{"$f":"IF(B22=\"\",\"\",#REF!+1)","v":""}]
[{"$f":"IF(B23=\"\",\"\",A22+1)","v":""}]
[""]
[""]
[""]
[""]
[""]
[""]
[""]
[""]
[""]
[]
[]
[{"$f":"IF(B35=\"\",\"\",A32+1)","v":""}]
[{"$f":"IF(B36=\"\",\"\",#REF!+1)","v":""}]
[{"$f":"IF(B37=\"\",\"\",A36+1)","v":""}]
[{"$f":"IF(B38=\"\",\"\",A37+1)","v":""}]
[{"$f":"IF(B39=\"\",\"\",A38+1)","v":""}]
[null,null,null,null,null,null,null,234]

{"sheet":"Part 3 SVHCs","index":3,"n_rows":227,"n_cols":4,"rows_kept":227,"cut":false,"hidden":false,"merged":[]}
["Record Name","1. CAS Number","2. EC Number","3. Substance Name"]
["1,2,3-Trichloropropane [96-18-4]","2580-56-5","219-943-6","[4-[[4-anilino-1-naphthyl][4-(dimethylamino)phenyl]methylene]cyclohexa-2,5-dien-1-ylidene] dimethylammonium chloride (C.I. Basic Blue 26) [with ≥ 0.1% of Michler's ketone (EC No. 202-027-5) or Michler's base (EC No. 202-959-2)]\n"]
["1,2-Benzenedicarboxylic acid, di-C6-8-branched alkyl esters, C7-rich [71888-89-6]","548-62-9","208-953-6","[4-[4,4'-bis(dimethylamino) benzhydrylidene]cyclohexa-2,5-dien-1-ylidene]dimethylammonium chloride (C.I. Basic Violet 3) [with ≥ 0.1% of Michler's ketone (EC No. 202-027-5) or Michler's base (EC No. 202-959-2)]\n"]
[null,"69011-06-9","273-688-5","[Phthalato(2-)]dioxotrilead"]
["1,2-benzenedicarboxylic acid; di-C7-11-branched a [68515-42-4]","96-18-4","202-486-1","1,2,3-Trichloropropane"]
["2,4-Dinitrotoluene [121-14-2]","68515-51-5","68515-51-5\n","1,2-benzenedicarboxylic acid, di-C6-10-alkyl esters; 1,2-benzenedicarboxylic acid, mixed decyl and hexyl and octyl diesters with ≥ 0.3% of dihexyl phthalate (EC No. 201-559-5)"]
[null,"68648-93-1","68648-93-1","1,2-benzenedicarboxylic acid, di-C6-10-alkyl esters; 1,2-benzenedicarboxylic acid, mixed decyl and hexyl and octyl diesters with ≥ 0.3% of dihexyl phthalate (EC No. 201-559-5)"]
["2-Ethoxyethanol [110-80-5]","71888-89-6","276-158-1","1,2-Benzenedicarboxylic acid, di-C6-8-branched alkyl esters, C7-rich"]
["2-ethoxyethyl acetate; ethylglycol acetate [111-15-9]","68515-50-4","271-093-5","1,2-Benzenedicarboxylic acid, dihexyl ester, branched and linear"]
["2-Methoxyethanol [109-86-4]","84777-06-0","284-032-2","1,2-Benzenedicarboxylic acid, dipentylester, branched and linear"]
[null,"68515-42-4","271-084-6","1,2-Benzenedicarboxylic acid; di-C7-11-branched and linear alkyl esters"]
["4,4'- Diaminodiphenylmethane [101-77-9]","112-49-2","203-977-3","1,2-bis(2-methoxyethoxy)ethane (TEGDME; triglyme)"]
["5-tert-butyl-2,4,6-trinitro-m-xylene (musk xylene) [81-15-2]","107-06-2","203-458-1","1,2-Dichloroethane"]
["Acrylamide [79-06-1]","629-14-1","211-076-1","1,2-diethoxyethane"]
[null,"110-71-4","203-794-9","1,2-dimethoxyethane; ethylene glycol dimethyl ether (EGDME)"]
["Alkanes, C10-13, chloro;  (Short chain chlorinated paraffins ) [85535-84-8]","2451-62-9","219-514-3","1,3,5-tris(oxiranylmethyl)-1,3,5-triazine-2,4,6(1H,3H,5H)-trione (TGIC)"]
["alpha-hexabromocyclododecane [134237-50-6]","59653-74-6","423-400-0","1,3,5-tris[(2S and 2R)-2,3-epoxypropyl]-1,3,5-triazine-2,4,6-(1H,3H,5H)-trione (β-TGIC)"]
["Aluminosilicate, Refractory Ceramic Fibres [NOCAS0080]","1120-71-4","1120-71-4","1,3-propanesultone"]
["Ammonium bichromate [7789-09-5]","-","-","1,6,7,8,9,14,15,16,17,17,18,18-Dodecachloropentacyclo[12.2.1.16,9.02,13.05,10]octadeca-7,15-diene (“Dechlorane Plus”TM) [covering any of its individual anti- and syn-isomers or any combinationthereof]"]
["Anthracene [120-12-7]","15087-24-8","15087-24-8","1,7,7-trimethyl-3-(phenylmethylene)bicyclo[2.2.1]heptan-2-one "]
["Anthracene oil [90640-80-5]","106-94-5","203-445-0","1-bromopropane (n-propyl bromide)"]
["Anthracene oil, anthracene paste [90640-81-6]","872-50-4","212-828-1","1-Methyl-2-pyrrolidone"]
[null,"36437-37-3","36437-37-3","2-(2H-benzotriazol-2-yl)-4-(tert-butyl)-6-(sec-butyl)phenol (UV-350)"]
["Anthracene oil, anthracene paste, anthracene fraction [91995-15-2]","25973-55-1","25973-55-1","2-(2H-benzotriazol-2-yl)-4,6-ditertpentylphenol (UV-328)"]
[null,"6807-17-6","6807-17-6","2,2-bis(4'-hydroxyphenyl)-4-methylpentane"]
["Anthracene oil, anthracene-low; Anthracene Oil Fr [90640-82-7]","101-14-4","202-918-9","2,2'-dichloro-4,4'-methylenedianiline (MOCA)"]
["Arsenic trioxide [1327-53-3]","-","-","2,3,3,3-tetrafluoro-2-(heptafluoropropoxy)propionic acid, its salts and its acyl halides (covering any of their individual isomers and combinations thereof)"]
["Benzyl butyl phthalate [85-68-7]","121-14-2","204-450-0","2,4-Dinitrotoluene"]
[null,"3864-99-1","3864-99-1","2,4-di-tert-butyl-6-(5-chlorobenzotriazol-2-yl)phenol (UV-327)"]
[null,"3846-71-7","3846-71-7","2-benzotriazol-2-yl-4,6-di-tert-butylphenol (UV-320)"]
[null,"110-80-5","203-804-1","2-Ethoxyethanol"]
[null,"111-15-9","203-839-2","2-Ethoxyethyl acetate; ethylglycol acetate"]
[null,"15571-58-1","15571-58-1","2-ethylhexyl 10-ethyl-4,4-dioctyl-7-oxo-8-oxa-3,5-dithia-4-stannatetradecanoate (DOTE)"]
[null,"90-04-0","201-963-1","2-Methoxyaniline o-Anisidine"]
["beta-hexabromocyclododecane [134237-51-7]","109-86-4","203-713-7","2-Methoxyethanol"]
[null,"110-49-6","110-49-6","2-methoxyethyl acetate"]
[null,"143860-04-2","421-150-7","3-ethyl-2-methyl-2-(3-methylbutyl)-1,3-oxazolidine"]
["Bis (2-ethyl(hexyl)phthalate) (DEHP) [117-81-7]","140-66-9","205-426-2","4-(1,1,3,3-tetramethylbutyl)phenol, (4-tert-Octylphenol)"]
["Bis(tributyltin) oxide [56-35-9]","-","-","4-(1,1,3,3-tetramethylbutyl)phenol, ethoxylated. [Covering well-defined substances and UVCB substances, polymers and homologues]"]
["Borax [1303-96-4]","101-77-9","202-974-4","4,4'- Diaminodiphenylmethane (MDA)"]
["Boric acid [10043-35-3]","80-05-7","80-05-7","4,4’-isopropylidenediphenol (bisphenol A; BPA)"]
["Boric acid [11113-50-1]","561-41-1","209-218-2","4,4'-bis(dimethylamino)-4''-(methylamino)trityl alcohol [with ≥ 0.1% of Michler's ketone (EC No. 202-027-5) or Michler's base (EC No. 202-959-2)]\n"]
[null,"90-94-8","202-027-5","4,4'-bis(dimethylamino)benzophenone (Michler's ketone)"]
["Chromic acid [13530-68-2]","838-88-0","212-658-8","4,4'-methylenedi-o-toluidine"]
["Chromic acid [7738-94-5]","101-80-4","202-977-0","4,4'-oxydianiline and its salts"]
["Chromium (VI) trioxide [1333-82-0]","60-09-3","200-453-6","4-aminoazobenzene"]
["Cobalt dichloride [7646-79-9]","-","-","4-heptylphenol, branched and linear [substances with a linear and/or branched alkyl chain with a carbon number of 7 covalently bound predominantly in position 4 to phenol, covering also UVCB- and well-defined substances which include any of the individual isomers or a combination thereof]"]
["Cobalt sulphate [10124-43-3]","95-80-7","202-453-1","4-methyl-m-phenylenediamine (toluene-2,4-diamine)"]
["Cobaltous acetate [71-48-7]",null,null,"4-Nonylphenol, branched and linear, ethoxylated [substances with a linear and/or branched alkyl chain with a carbon number of 9 covalently bound in position 4 to phenol, ethoxylated covering UVCB- and well-defined substances, polymers and homologues, which include any of the individual isomers and/or combinations thereof] "]
["Cobaltous carbonate [513-79-1]","-","-","4-Nonylphenol, branched and linear. [Substances with a linear and/or branched alkyl chain with a carbon number of 9 covalently bound in position 4 to phenol, covering also UVCB- and well-defined substances which include any of the individual isomers or a combination thereof]"]
["Cobaltous nitrate [10141-05-6]","98-54-4","98-54-4","4-tert-butylphenol"]
["Diarsenic pentaoxide [1303-28-2]","-","-","5-sec-butyl-2-(2,4-dimethylcyclohex-3-en-1-yl)-5-methyl-1,3-dioxane [1], 5-sec-butyl-2-(4,6-dimethylcyclohex-3-en-1-yl)-5-methyl-1,3-dioxane [2] [covering any of the individual stereoisomers of [1] and [2] or any combination thereof]"]
["Dibutyl phthalate [84-74-2]","81-15-2","201-329-4","5-Tert-butyl-2,4,6-trinitro-m-xylene (musk xylene)"]
[null,"120-71-8","204-419-1","6-methoxy-m-toluidine (p-cresidine)"]
["Diisobutyl phthalate [84-69-5]","51404-69-4","257-175-3","Acetic acid, lead salt, basic"]
["gamma-hexabromocyclododecane [134237-52-8]","79-06-1","201-173-7","Acrylamide"]
["Hexabromocyclododecane (HBCDD) [25637-99-4]","85535-84-8","287-476-5","Alkanes, C10-13, chloro;  (Short chain chlorinated paraffins )"]
[null,"134237-50-6",null,"Alpha-hexabromocyclododecane"]
["Hexabromocyclododecane (HBCDD) [3194-55-6]","NOCAS0080",null,"Aluminosilicate Refractory Ceramic Fibres (RCF)"]
["Hydrazine [302-01-2]","7789-09-5","232-143-1","Ammonium dichromate"]
["Hydrazine hydrate [10217-52-4]","3825-26-1 ","223-320-4 ","Ammonium pentadecafluorooctanoate (APFO)"]
["Hydrazine hydrate [7803-57-8]","120-12-7","204-371-1","Anthracene"]
[null,"90640-80-5","292-602-7","Anthracene oil"]
[null,"90640-81-6","292-603-2","Anthracene oil, anthracene paste"]
[null,"91995-15-2","295-275-9","Anthracene oil, anthracene paste, anthracene fraction"]
["Lead chromate [7758-97-6]","91995-17-4","295-278-5","Anthracene oil, anthracene paste, distn. lights"]
["Lead chromate molybdate sulfate red [12656-85-8]","90640-82-7","292-604-8","Anthracene oil, anthracene-low; Anthracene Oil Fr"]
["Lead hydrogen arsenate [7784-40-9]","7778-39-4","231-901-9","Arsenic acid"]
[null,"1327-53-3","215-481-4","Arsenic trioxide"]
["Lead sulfochromate yellow [1344-37-2]","56-55-3","56-55-3","Benz[a]anthracene"]
["N-Methyl-2-pyrrolidone [872-50-4]","552-30-7","552-30-7","Benzene-1,2,4-tricarboxylic acid 1,2 anhydride (trimellitic anhydride; TMA)"]
["Pitch, coal tar, high-temp. [65996-93-2]","50-32-8","50-32-8","Benzo[def]chrysene"]
["Potassium bichromate [7778-50-9]","191-24-2","191-24-2","Benzo[ghi]perylene"]
["Potassium chromate [7789-00-6]","207-08-9","207-08-9","Benzo[k]fluoranthene"]
[null,"85-68-7","201-622-7","Benzyl butyl phthalate (BBP)"]
["Sodium bichromate [10588-01-9]","134237-51-7",null,"Beta-hexabromocyclododecane"]
[null,"92-67-1","202-177-1","Biphenyl-4-ylamine"]
["Sodium chromate [7775-11-3]","117-81-7","204-211-0","Bis (2-ethyl(hexyl)phthalate) (DEHP)"]
["Sodium dichromate, dihydrate [7789-12-0]","111-96-6","203-924-4","Bis(2-methoxyethyl) ether (Diglyme)"]
[null,"117-82-8","204-212-6","Bis(2-methoxyethyl) phthalate"]
["Sodium tetraborate [1330-43-4]","1163-19-5","214-604-9","Bis(pentabromophenyl) ether (decabromodiphenyl ether; DecaBDE)"]
["Sodium tetraborate pentahydrate [12179-04-3]","56-35-9","200-268-0","Bis(tributyltin) oxide (TBTO)"]
[null,"1303-96-4","*603-411-9","Borax"]
[null,"10043-35-3","233-139-2","Boric acid"]
["Strontium chromate [7789-06-2]","11113-50-1","234-343-4","Boric acid"]
[null,"7440-43-9","231-152-8","Cadmium"]
[null,"513-78-0","513-78-0","Cadmium carbonate"]
[null,"10108-64-2","233-296-7","Cadmium chloride"]
[null,"7790-79-6","7790-79-6","Cadmium fluoride"]
[null,"21041-95-2","21041-95-2","Cadmium hydroxide"]
[null,"10325-94-7","10325-94-7","Cadmium nitrate"]
[null,"1306-19-0","215-146-2","Cadmium oxide"]
[null,"10124-36-4","10124-36-4","Cadmium sulphate"]
["Tetraboron disodium heptaoxide, hydrate [12267-73-1]","31119-53-6","31119-53-6","Cadmium sulphate"]
["Trichloroethylene [79-01-6]","1306-23-6","215-147-8","Cadmium sulphide"]
[null,"7778-44-1","231-904-5","Calcium arsenate"]
["Triethyl arsenate [15606-95-8]","7738-94-5","231-801-5","Chromic acid"]
[null,"1333-82-0","215-607-8","Chromium (VI) trioxide"]
[null,"218-01-9","218-01-9","Chrysene"]
["Tris(2-chloroethyl)phosphate [115-96-8]","13149-00-3","236-086-3","cis-cyclohexane-1,2-dicarboxylic anhydride [2]"]
["Zirconia, Refractory Ceramic Fibres [NOCAS0079]","513-79-1","208-169-4","Cobalt carbonate"]
[null,"71-48-7","200-755-8","Cobalt diacetate"]
[null,"7646-79-9","231-589-4","Cobalt dichloride"]
[null,"10141-05-6","233-402-1","Cobalt dinitrate"]
[null,"10124-43-3","233-334-2","Cobalt sulphate"]
[null,"85-42-7","201-604-9","Cyclohexane-1,2-dicarboxylic anhydride [1]  [The individual cis- [2] and trans- [3] isomer substances and all possible combinations of the cis- and trans-isomers [1] are covered by this entry]."]
[null,"541-02-6","541-02-6","Decamethylcyclopentasiloxane (D5)"]
[null,"1303-28-2","215-116-9","Diarsenic pentaoxide"]
[null,"123-77-3","204-650-8","Diazene-1,2-dicarboxamide (C,C'-azodi(formamide))"]
[null,"1303-86-2","215-125-8","Diboron trioxide"]
[null,"84-74-2","201-557-4","Dibutyl phthalate (DBP)"]
[null,"683-18-1","211-670-0","Dibutyltin dichloride (DBTC)"]
[null,"13530-68-2","236-881-5","Dichromic acid"]
[null,"24613-89-6","246-356-2","Dichromium tris(chromate)"]
[null,"84-61-7","84-61-7","Dicyclohexyl phthalate (DCHP)"]
[null,"64-67-5","200-589-6","Diethyl sulphate"]
[null,"84-75-3","201-559-5","Dihexyl phthalate"]
[null,"84-69-5","201-553-2","Diisobutyl phthalate"]
[null,"605-50-5","210-088-4","Diisopentylphthalate (DIPP)"]
[null,"77-78-1","201-058-1","Dimethyl sulphate"]
[null,"88-85-7","201-861-7","Dinoseb (6-sec-butyl-2,4-dinitrophenol)"]
[null,"12578-12-0","235-702-8","Dioxobis(stearato)trilead"]
[null,"131-18-0","205-017-9","Dipentyl phthalate (DPP)"]
[null,"573-58-0","209-358-4","Disodium 3,3'-[[1,1'-biphenyl]-4,4'-diylbis(azo)]bis(4-aminonaphthalene-1-sulphonate) (C.I. Direct Red 28)"]
[null,"1937-37-7","217-710-3","Disodium 4-amino-3-[[4'-[(2,4-diaminophenyl)azo][1,1'-biphenyl]-4-yl]azo] -5-hydroxy-6-(phenylazo)naphthalene-2,7-disulphonate (C.I. Direct Black 38)"]
[null,"12008-41-2","12008-41-2","Disodium octaborate"]
[null,"540-97-6","540-97-6","Dodecamethylcyclohexasiloxane (D6)"]
[null,"107-15-3","107-15-3","Ethylenediamine (EDA)"]
[null,"91031-62-8","292-966-7","Fatty acids, C16-18, lead salts"]
[null,"206-44-0","206-44-0","Fluoranthene"]
[null,"25214-70-4","500-036-1","Formaldehyde, oligomeric reaction products with aniline (technical MDA)"]
[null,"75-12-7","200-842-0","Formamide"]
[null,"110-00-9","203-727-3","Furan"]
[null,"134237-52-8",null,"Gamma-hexabromocyclododecane"]
[null,"2058-94-8","218-165-4","Henicosafluoroundecanoic acid"]
[null,"376-06-7","206-803-4","Heptacosafluorotetradecanoic acid"]
[null,"25637-99-4","247-148-4","Hexabromocyclododecane (HBCDD)"]
[null,"3194-55-6","221-695-9","Hexabromocyclododecane (HBCDD)"]
[null,"48122-14-1","256-356-4","Hexahydro-1-methylphthalic anhydride [3]"]
[null,"57110-29-9 ","260-566-1","Hexahydro-3-methylphthalic anhydride [4]"]
[null,"19438-60-9","243-072-0","Hexahydro-4-methylphthalic anhydride [2]"]
[null,"25550-51-0","247-094-1","Hexahydromethylphthalic anhydride [1].  [The individual isomers [2], [3] and [4] (including their cis- and trans- stereo isomeric forms) and all possible combinations of the isomers [1] are covered by this entry]"]
[null,"302-01-2","206-114-9","Hydrazine"]
[null,"7803-57-8","206-114-9","Hydrazine "]
[null,"10217-52-4","206-114-9","Hydrazine hydrate"]
[null,"10217-52-10","206-114-10","Hydrazine hydrate"]
[null,"96-45-7","202-506-9","Imidazolidine-2-thione (2-imidazoline-2-thiol)"]
[null,"7439-92-1","7439-92-1","Lead"]
[null,"13814-96-5","237-486-0","Lead bis(tetrafluoroborate)"]
[null,"7758-97-6","231-846-0","Lead chromate"]
[null,"12656-85-8","235-759-9","Lead chromate molybdate sulfate red (CI Pigment Red 104)"]
[null,"20837-86-9","244-073-9","Lead cynamidate"]
[null,"301-04-2","206-104-4","Lead di(acetate)"]
[null,"13424-46-9","236-542-1","Lead diazide"]
[null,"10099-74-8","233-245-9","Lead dinitrate"]
[null,"6477-64-1","229-335-2","Lead dipicrate"]
[null,"7784-40-9","232-064-2","Lead hydrogen arsenate"]
[null,"1317-36-8","215-267-0","Lead monoxide (Lead oxide)"]
[null,"12036-76-9","234-853-7","Lead oxide sulfate"]
[null,"15245-44-0","239-290-0","Lead styphnate"]
[null,"1344-37-2","215-693-7","Lead sulfochromate yellow (CI Pigment Yellow 34)"]
[null,"12060-00-3","235-038-9","Lead titanium trioxide"]
[null,"12626-81-2","235-727-4","Lead titanium zirconium oxide"]
[null,"17570-76-2","401-750-5","Lead(II) bis(methanesulfonate)"]
[null,"625-45-6","210-894-6","Methoxyacetic acid"]
[null,"75-56-9","200-879-2","Methyloxirane (Propylene oxide)"]
[null,"101-61-1","202-959-2","N,N,N',N'-tetramethyl-4,4'-methylenedianiline (Michler's base)"]
[null,"127-19-5","204-826-4","N,N-dimethylacetamide (DMAC)"]
[null,"68-12-2","200-679-5 ","N,N-dimethylformamide"]
[null,"98-95-3","98-95-3","Nitrobenzene"]
[null,"79-16-3","201-182-6","N-methylacetamide"]
[null,"335-76-2","335-76-2","Nonadecafluorodecanoic acid (PFDA) and its sodium and ammonium salts (1)"]
[null,"3830-45-3","3830-45-3","Nonadecafluorodecanoic acid (PFDA) and its sodium and ammonium salts (2)"]
[null,"3108-42-7 ","3108-42-7 ","Nonadecafluorodecanoic acid (PFDA) and its sodium and ammonium salts (3)"]
[null,"776297-69-9","-","N-pentyl-isopentylphthalate"]
[null,"97-56-3","202-591-2","o-aminoazotoluene [(4-o-tolylazo-o-toluidine])"]
[null,"556-67-2","556-67-2","Octamethylcyclotetrasiloxane (D4)"]
[null,"1314-41-6","215-235-6","Orange lead (Lead tetroxide)"]
[null,"95-53-4","202-429-0","o-toluidine"]
[null,"80-46-6","80-46-6","p-(1,1-dimethylpropyl)phenol "]
[null,"72629-94-8","276-745-2","Pentacosafluorotridecanoic acid"]
[null,"335-67-1","206-397-9","Pentadecafluorooctanoic acid (PFOA)"]
[null,"12065-90-6","235-067-7","Pentalead tetraoxide sulphate"]
[null,"49663-84-5","256-418-0","Pentazinc chromate octahydroxide"]
[null,"-","234-390-0","Perboric acid, sodium salt"]
[null,"-","-","Perfluorohexane-1-sulfonic acid and its salts (PFHxS)"]
[null,"375-95-1","375-95-1\n\n","Perfluorononan-1-oic-acid and its sodium and ammonium salts"]
[null,"21049-39-8","21049-39-8","Perfluorononan-1-oic-acid and its sodium and ammonium salts"]
[null,"4149-60-4","4149-60-4","Perfluorononan-1-oic-acid and its sodium and ammonium salts"]
[null,"85-01-8","85-01-8","Phenanthrene"]
[null,"77-09-8","201-004-7","Phenolphthalein"]
[null,"65996-93-2","266-028-2","Pitch, coal tar, high-temp."]
[null,"7789-00-6","232-140-5","Potassium chromate"]
[null,"7778-50-9","231-906-6","Potassium dichromate"]
[null,"11103-86-9","234-329-8","Potassium hydroxyoctaoxodizincatedichromate"]
[null,"129-00-0","129-00-0","Pyrene"]
[null,"8012-00-8","232-382-1","Pyrochlore, antimony lead yellow"]
[null,"-","-","reaction mass of 2-ethylhexyl 10-ethyl-4,4-dioctyl-7-oxo-8-oxa-3,5-dithia-4-stannatetradecanoate and 2-ethylhexyl 10-ethyl-4-[[2-[(2-ethylhexyl)oxy]-2-oxoethyl]thio]-4-octyl-7-oxo-8-oxa-3,5-dithia-4-stannatetradecanoate (reaction mass of DOTE and MOTE)"]
[null,"-","-","Reaction products of 1,3,4-thiadiazolidine-2,5-dithione, formaldehyde and 4-heptylphenol, branched and linear (RP-HP) [with ≥0.1% w/w 4-heptylphenol, branched and linear]"]
[null,"68784-75-8","272-271-5","Silicic acid (H2Si2O5), barium salt (1:1), lead-doped. [With lead (Pb) content above the applicable generic concentration limit for 'toxicity for reproduction' Repr. 1A (CLP) or category 1 (DSD); the substance is a member of the group entry of lead compounds, with index number 082-001-00-6 in Regulation (EC) No 1272/2008]"]
[null,"11120-22-2","234-363-3","Silicic acid, lead salt"]
[null,"7775-11-3","231-889-5","Sodium chromate"]
[null,"10588-01-9","234-190-3","Sodium dichromate"]
[null,"7789-12-0","234-190-3","Sodium dichromate, dihydrate"]
[null,"-","239-172-9","Sodium perborate"]
[null,"7632-04-4","231-556-4","Sodium peroxometaborate"]
[null,"1330-43-4","215-540-4","Sodium tetraborate"]
[null,"1303-96-4","215-540-4","Sodium tetraborate"]
[null,"12179-04-3","*601-808-1","Sodium tetraborate pentahydrate"]
[null,"7789-06-2","232-142-6","Strontium chromate"]
[null,"62229-08-7","263-467-1","Sulfurous acid, lead salt, dibasic"]
[null,"61788-32-7","61788-32-7","Terphenyl, hydrogenated"]
[null,"12267-73-1","235-541-3","Tetraboron disodium heptaoxide, hydrate"]
[null,"78-00-2","201-075-4","Tetraethyllead"]
[null,"12202-17-4","235-380-9","Tetralead trioxide sulphate"]
[null,"14166-21-3","238-009-9","trans-cyclohexane-1,2-dicarboxylic anhydride [3]"]
[null,"79-01-6","201-167-4","Trichloroethylene"]
[null,"307-55-1","206-203-2","Tricosafluorododecanoic acid"]
[null,"15606-95-8","427-700-2","Triethyl arsenate"]
[null,"1319-46-6","215-290-6","Trilead bis(carbonate)dihydroxide"]
[null,"3687-31-8","222-979-5","Trilead diarsenate"]
[null,"12141-20-7","235-252-2","Trilead dioxide phosphonate"]
[null,"115-96-8","204-118-5","Tris(2-chloroethyl)phosphate"]
[null,"-","-","Tris(4-nonylphenyl, branched and linear) phosphite (TNPP) with ≥ 0.1% w/w of 4-nonylphenol, branched and linear (4-NP)"]
[null,"25155-23-1","246-677-8","Trixylyl phosphate"]
[null,"NOCAS0079",null,"Zirconia Aluminosilicate Refractory Ceramic Fibres (Zr-RCF)"]
[null,"6786-83-0","229-851-8","α,α-Bis[4-(dimethylamino)phenyl]-4 (phenylamino)naphthalene-1-methanol (C.I. Solvent Blue 4) [with ≥ 0.1% of Michler's ketone (EC No. 202-027-5) or Michler's base (EC No. 202-959-2)]\n"]

{"sheet":"Part 4 RoHS","index":4,"n_rows":23,"n_cols":29,"rows_kept":23,"cut":false,"hidden":false,"merged":[[1,0,1,1],[3,2,3,3],[2,0,2,10],[17,7,17,8],[11,7,11,8],[12,7,12,8],[13,7,13,8],[14,7,14,8],[15,7,15,8],[16,7,16,8],[5,7,5,8],[6,7,6,8],[1,2,1,10],[19,0,19,3],[7,7,7,8],[8,7,8,8],[9,7,9,8],[10,7,10,8]]}
[]
[]
["PART 4: RoHS - Leadfree Soldering and/or Restricted Substances",null,null,null,null,null,null,null,null,null,null,null,null,null,null,null,null,null,null,null,null,null,null,null,null,null,null,null,"Commercial"]
[null,"Supplier Name:",null,null,null,null,null,null,null,null,null,null,null,null,null,null,null,null,null,null,null,null,null,null,null,null,null,null,"Military"]
["In case of positive answer, please fill-in the table below (One line per Article/Part Number)"]
[null,"Supplier Part Number","Supplier Part Desc","AW SAP Part Number","AW Part Description","CAS Number","EC Number","Chemical Name",null,"Weight %","AW Category"]
[1]
[2]
[3]
[4]
[5]
[6]
[7]
[8]
[9]
[10]
[11]
["…","etc…"]
[]
["Note: In case additional information is required, the Supplier will be contacted directly by LHUK."]
[]
["For further information:"]
["http://rohs.eu/"]

{"sheet":"Part 5 Radioactive Sources","index":5,"n_rows":21,"n_cols":7,"rows_kept":21,"cut":false,"hidden":false,"merged":[[0,0,0,2],[1,0,1,6],[3,0,3,2],[17,0,17,3],[2,2,2,3],[0,3,0,6]]}
[]
["Part 5: Products Containing Radioactive Sources"]
[null,"Supplier Name:"]
["In case of positive answer, please fill-in the table below (One line per Article/Part Number)"]
[]
["Supplier Part Number","Supplier Part Desc","AW SAP Part Number","AW Part Description","Part Commercial Name","Type of radionucleide contained in the item","activity (Bq)"]
[]
[]
[]
[]
[]
[]
[]
[]
[]
[]
[]
["Note: In case additional information is required, the Supplier will be contacted directly by LHUK."]
[]
["For further information:"]
["www.euratom.org"]

{"sheet":"Attribute Lookup","index":6,"n_rows":16,"n_cols":27,"rows_kept":16,"cut":false,"hidden":true,"merged":[]}
["Attribute Name","DataType","Units","Parent Attribute","Worksheet","Specimen","Data Range","Parameter 1 Range","Parameter 2 Range","Parameter 3 Range","Parameter 4 Range","Parameter 5 Range","Parameter 5 Name","Parameter 6 Range","Parameter 6 Name","Parameter 7 Range","Parameter 7 Name","Parameter 8 Range","Parameter 8 Name","Parameter 9 Range","Parameter 9 Name","Parameter 10 Range","Parameter 10 Name","Line Type","Log","Estimate","Interpolate"]
["Record Name","RCN",null,null,"Disclosure",null,"MI_RECORDNAME"]
["Total weight %","PNT","%",null,"Disclosure",null,"MI_TOTAL_WTPCT"]
["Supplier name","STXT",null,null,"Disclosure",null,"MI_COMPANY"]
["Request Date","DAT",null,null,"Disclosure",null,"MI_REQU_DAT"]
["Requester item number","STXT",null,null,"Disclosure",null,"MI_REQU_ITEM_NO"]
["Declaration number","STXT",null,null,"Disclosure",null,"MI_DEC_NO"]
["Supplier item number","STXT",null,null,"Disclosure",null,"MI_ITEM_NO"]
["Supplier item name","STXT",null,null,"Disclosure",null,"MI_ITEM_NAME"]
["Declaration prepared by","STXT",null,null,"Disclosure",null,"MI_PREPARER"]
["Date of declaration","DAT",null,null,"Disclosure",null,"MI_DECL_DAT"]
["Weight of item","PNT",{"$f":"'Part 3 REACh'!F15","v":"kg"},null,"Disclosure",null,"MI_WEIGHT"]
["Requester name","STXT",null,null,"Disclosure",null,"MI_REQUESTER_COMPANY"]
["Restricted substances associated with this article","TABL",null,null,"Disclosure",null,"MI_ROW_DATA","MI_CATEGORY","MI_WEIGHT_PC","MI_LINKED_VALUE"]
["Supplier declaration received?","LOG",null,null,"Import Options",null,"MI_DECL_RECEIVED"]
["Supplier declaration","FIL",null,null,"Import Options",null,"MI_DECL_FILE"]

{"sheet":"Export Lookup","index":7,"n_rows":5,"n_cols":31,"rows_kept":5,"cut":false,"hidden":true,"merged":[]}
["Attribute Name","DataType","Units","Parent Attribute","Worksheet","Specimen","Data Range","Parameter 1 Range","Parameter 1 Name","Parameter 2 Range","Parameter 2 Name","Parameter 3 Range","Parameter 3 Name","Parameter 4 Range","Parameter 4 Name","Parameter 5 Range","Parameter 5 Name","Parameter 6 Range","Parameter 6 Name","Parameter 7 Range","Parameter 7 Name","Parameter 8 Range","Parameter 8 Name","Parameter 9 Range","Parameter 9 Name","Parameter 10 Range","Parameter 10 Name","Line Type","Log","Estimate","Interpolate"]
["Record Name","RCN",null,null,"Detailed Chemicals List","Row","MI_RECORDNAME"]
["EC number","STXT",null,null,"Detailed Chemicals List","Row","MI_EC_NO"]
["CAS number","STXT",null,null,"Detailed Chemicals List","Row","MI_CAS"]
["Chemical name","STXT",null,null,"Detailed Chemicals List","Row","MI_CHEM_NAME"]

{"sheet":"Parameter Lookup","index":8,"n_rows":4,"n_cols":3,"rows_kept":4,"cut":false,"hidden":true,"merged":[]}
["Parameter","Data Range","Unit"]
["MI LINKED VALUE","MI_LINKED_VALUE"]
["Amount","MI_WEIGHT_PC","%"]
["Category","MI_CATEGORY"]

{"sheet":"Import Options","index":9,"n_rows":60,"n_cols":11,"rows_kept":60,"cut":false,"hidden":true,"merged":[[22,1,23,1]]}
[]
[null,"Auto-Placement",null,null,null,"Auto-Links","Link Cluster","Search Value","Search Attribute","Match Attribute","Match Property"]
[null,"DBKey",null,null,null,null,{"$f":"IF(H3=\"\",\"\",\"Restricted substances found in this article\")","v":"Restricted substances found in this article"},{"$f":"IF('Part 3 REACh'!B18=\"\",\"\",'Part 3 REACh'!B18)","v":"2580-56-5"},null,{"$f":"IF(H3=\"\",\"\",\"CAS number\")","v":"CAS number"}]
[null,"Table",null,null,null,null,{"$f":"IF(H4=\"\",\"\",\"Restricted substances found in this article\")","v":""},{"$f":"IF('Part 3 REACh'!B19=\"\",\"\",'Part 3 REACh'!B19)","v":""},null,{"$f":"IF(H4=\"\",\"\",\"CAS number\")","v":""}]
[null,"Search Value",null,null,null,null,"",{"$f":"IF('Part 3 REACh'!B20=\"\",\"\",'Part 3 REACh'!B20)","v":""},null,""]
[null,"Search Attribute",null,null,null,null,"",{"$f":"IF('Part 3 REACh'!B21=\"\",\"\",'Part 3 REACh'!B21)","v":""},null,""]
[null,"Match Property",null,null,null,null,"",{"$f":"IF('Part 3 REACh'!B22=\"\",\"\",'Part 3 REACh'!B22)","v":""},null,""]
[null,"Match Attribute",null,null,null,null,"",{"$f":"IF('Part 3 REACh'!B23=\"\",\"\",'Part 3 REACh'!B23)","v":""},null,""]
[null,"IsChildRecord",null,null,null,null,"",{"$f":"IF('Part 3 REACh'!B24=\"\",\"\",'Part 3 REACh'!B24)","v":""},null,""]
[null,"Filter",null,null,null,null,"",{"$f":"IF('Part 3 REACh'!B25=\"\",\"\",'Part 3 REACh'!B25)","v":""},null,""]
[null,null,null,null,null,null,"",{"$f":"IF('Part 3 REACh'!B26=\"\",\"\",'Part 3 REACh'!B26)","v":""},null,""]
[null,null,null,null,null,null,"",{"$f":"IF('Part 3 REACh'!B27=\"\",\"\",'Part 3 REACh'!B27)","v":""},null,""]
[null,"Additonal Information",null,null,null,null,"",{"$f":"IF('Part 3 REACh'!B28=\"\",\"\",'Part 3 REACh'!B28)","v":""},null,""]
[null,"Layout",null,null,null,null,"",{"$f":"IF('Part 3 REACh'!B29=\"\",\"\",'Part 3 REACh'!B29)","v":""},null,""]
[null,null,null,null,null,null,"",{"$f":"IF('Part 3 REACh'!B30=\"\",\"\",'Part 3 REACh'!B30)","v":""},null,""]
[null,null,null,null,null,null,"",{"$f":"IF('Part 3 REACh'!B31=\"\",\"\",'Part 3 REACh'!B31)","v":""},null,""]
[null,"Valid Table",null,null,null,null,"",{"$f":"IF('Part 3 REACh'!B32=\"\",\"\",'Part 3 REACh'!B32)","v":""},null,""]
[null,"Table 1","Bought-in Articles",null,null,null,"",{"$f":"IF('Part 3 REACh'!B33=\"\",\"\",'Part 3 REACh'!B33)","v":""},null,""]
[null,"Table 2","Restricted Substances",null,null,null,"",{"$f":"IF('Part 3 REACh'!B34=\"\",\"\",'Part 3 REACh'!B34)","v":""},null,""]
[null,"Table 3",null,null,null,null,"",{"$f":"IF('Part 3 REACh'!B35=\"\",\"\",'Part 3 REACh'!B35)","v":""},null,""]
[null,null,null,null,null,null,"",{"$f":"IF('Part 3 REACh'!B36=\"\",\"\",'Part 3 REACh'!B36)","v":""},null,""]
[null,null,null,null,null,null,"",{"$f":"IF('Part 3 REACh'!B37=\"\",\"\",'Part 3 REACh'!B37)","v":""},null,""]
[null,"Supplier declaration received?",true,null,null,null,"",{"$f":"IF('Part 3 REACh'!B38=\"\",\"\",'Part 3 REACh'!B38)","v":""},null,""]
[null,null,null,null,null,null,"",{"$f":"IF('Part 3 REACh'!B39=\"\",\"\",'Part 3 REACh'!B39)","v":""},null,""]
[null,"Declaration file","!FILENAME",null,null,null,"",{"$f":"IF('Part 3 REACh'!B40=\"\",\"\",'Part 3 REACh'!B40)","v":""},null,""]
[null,null,null,null,null,null,"",{"$f":"IF('Part 3 REACh'!B41=\"\",\"\",'Part 3 REACh'!B41)","v":""},null,""]
[null,null,null,null,null,null,"",{"$f":"IF('Part 3 REACh'!B42=\"\",\"\",'Part 3 REACh'!B42)","v":""},null,""]
[null,null,null,null,null,null,"",{"$f":"IF('Part 3 REACh'!B43=\"\",\"\",'Part 3 REACh'!B43)","v":""},null,""]
[null,null,null,null,null,null,"",{"$f":"IF('Part 3 REACh'!B44=\"\",\"\",'Part 3 REACh'!B44)","v":""},null,""]
[null,null,null,null,null,null,"",{"$f":"IF('Part 3 REACh'!B45=\"\",\"\",'Part 3 REACh'!B45)","v":""},null,""]
[null,null,null,null,null,null,"",{"$f":"IF('Part 3 REACh'!B46=\"\",\"\",'Part 3 REACh'!B46)","v":""},null,""]
[null,null,null,null,null,null,"",{"$f":"IF('Part 3 REACh'!B47=\"\",\"\",'Part 3 REACh'!B47)","v":""},null,""]
[null,null,null,null,null,null,"",{"$f":"IF('Part 3 REACh'!B48=\"\",\"\",'Part 3 REACh'!B48)","v":""},null,""]
[null,null,null,null,null,null,"",{"$f":"IF('Part 3 REACh'!B49=\"\",\"\",'Part 3 REACh'!B49)","v":""},null,""]
[null,null,null,null,null,null,"",{"$f":"IF('Part 3 REACh'!B50=\"\",\"\",'Part 3 REACh'!B50)","v":""},null,""]
[null,null,null,null,null,null,"",{"$f":"IF('Part 3 REACh'!B51=\"\",\"\",'Part 3 REACh'!B51)","v":""},null,""]
[null,null,null,null,null,null,"",{"$f":"IF('Part 3 REACh'!B52=\"\",\"\",'Part 3 REACh'!B52)","v":""},null,""]
[null,null,null,null,null,null,"",{"$f":"IF('Part 3 REACh'!B53=\"\",\"\",'Part 3 REACh'!B53)","v":""},null,""]
[null,null,null,null,null,null,"",{"$f":"IF('Part 3 REACh'!B54=\"\",\"\",'Part 3 REACh'!B54)","v":""},null,""]
[null,null,null,null,null,null,"",{"$f":"IF('Part 3 REACh'!B55=\"\",\"\",'Part 3 REACh'!B55)","v":""},null,""]
[null,null,null,null,null,null,"",{"$f":"IF('Part 3 REACh'!B56=\"\",\"\",'Part 3 REACh'!B56)","v":""},null,""]
[null,null,null,null,null,null,"",{"$f":"IF('Part 3 REACh'!B57=\"\",\"\",'Part 3 REACh'!B57)","v":""},null,""]
[null,null,null,null,null,null,"",{"$f":"IF('Part 3 REACh'!B58=\"\",\"\",'Part 3 REACh'!B58)","v":""},null,""]
[null,null,null,null,null,null,"",{"$f":"IF('Part 3 REACh'!B59=\"\",\"\",'Part 3 REACh'!B59)","v":""},null,""]
[null,null,null,null,null,null,"",{"$f":"IF('Part 3 REACh'!B60=\"\",\"\",'Part 3 REACh'!B60)","v":""},null,""]
[null,null,null,null,null,null,"",{"$f":"IF('Part 3 REACh'!B61=\"\",\"\",'Part 3 REACh'!B61)","v":""},null,""]
[null,null,null,null,null,null,"",{"$f":"IF('Part 3 REACh'!B62=\"\",\"\",'Part 3 REACh'!B62)","v":""},null,""]
[null,null,null,null,null,null,"",{"$f":"IF('Part 3 REACh'!B63=\"\",\"\",'Part 3 REACh'!B63)","v":""},null,""]
[null,null,null,null,null,null,"",{"$f":"IF('Part 3 REACh'!B64=\"\",\"\",'Part 3 REACh'!B64)","v":""},null,""]
[null,null,null,null,null,null,"",{"$f":"IF('Part 3 REACh'!B65=\"\",\"\",'Part 3 REACh'!B65)","v":""},null,""]
[null,null,null,null,null,null,"",{"$f":"IF('Part 3 REACh'!B66=\"\",\"\",'Part 3 REACh'!B66)","v":""},null,""]
[null,null,null,null,null,null,"",{"$f":"IF('Part 3 REACh'!B67=\"\",\"\",'Part 3 REACh'!B67)","v":""},null,""]
[null,null,null,null,null,null,"",{"$f":"IF('Part 3 REACh'!B68=\"\",\"\",'Part 3 REACh'!B68)","v":""},null,""]
[null,null,null,null,null,null,"",{"$f":"IF('Part 3 REACh'!B69=\"\",\"\",'Part 3 REACh'!B69)","v":""},null,""]
[null,null,null,null,null,null,"",{"$f":"IF('Part 3 REACh'!B70=\"\",\"\",'Part 3 REACh'!B70)","v":""},null,""]
[null,null,null,null,null,null,"",{"$f":"IF('Part 3 REACh'!B71=\"\",\"\",'Part 3 REACh'!B71)","v":""},null,""]
[null,null,null,null,null,null,"",{"$f":"IF('Part 3 REACh'!B72=\"\",\"\",'Part 3 REACh'!B72)","v":""},null,""]
[null,null,null,null,null,null,"",{"$f":"IF('Part 3 REACh'!B73=\"\",\"\",'Part 3 REACh'!B73)","v":""},null,""]
[null,null,null,null,null,null,"",{"$f":"IF('Part 3 REACh'!B74=\"\",\"\",'Part 3 REACh'!B74)","v":""},null,""]
[null,null,null,null,null,null,"",{"$f":"IF('Part 3 REACh'!B75=\"\",\"\",'Part 3 REACh'!B75)","v":""},null,""]